fUSD/lending_fUSD_20251206
["ID","MTS","AMOUNT","RATE_DAILY","PERIOD"]
[396539941,1765043446083,-500.0,0.00016438,2]
[396539942,1765043446092,-500.0,0.00016438,2]
[396539943,1765043446101,-500.0,0.00016438,2]
[396539944,1765043446111,-500.0,0.00016438,2]
[396539945,1765043446120,-500.0,0.00016438,2]
[396539946,1765043446129,-500.0,0.00016438,2]
[396539947,1765043446139,-2560.52,0.00016438,2]
[396539948,1765043446148,-500.0,0.00016438,2]
[396539949,1765043446157,-500.95075378,0.00016438,2]
[396539950,1765043446167,-869.26,0.00016438,2]
[396539951,1765043446176,-569.16,0.00016438,2]
[396539952,1765043446186,-1300.75,0.00016438,2]
[396539953,1765043446196,-500.0,0.00016438,2]
[396539954,1765043446206,-500.0,0.00016438,2]
[396539955,1765043446215,-501.76306707,0.00016438,2]
[396539957,1765043446225,-519.81,0.00016438,2]
[396539958,1765043446236,-501.54488646,0.00016438,2]
[396539959,1765043446245,-500.0,0.00016438,2]
[396539960,1765043446255,-957.78,0.00016438,2]
[396539961,1765043446265,-2451.83,0.00016438,2]
[396539962,1765043446274,-500.0,0.00016438,2]
[396539963,1765043446284,-500.0,0.00016438,2]
[396539964,1765043446293,-500.0,0.00016438,2]
[396539965,1765043446303,-502.49133495,0.00016438,2]
[396539966,1765043446313,-500.0,0.00016438,2]
[396539967,1765043446323,-500.42233079,0.00016438,2]
[396539968,1765043446333,-500.0,0.00016438,2]
[396539969,1765043446343,-500.0,0.00016438,2]
[396539970,1765043446354,-151.0,0.00016438,2]
[396539971,1765043446364,-500.0,0.00016438,2]
[396539972,1765043446374,-500.19884805,0.00016438,2]
[396539973,1765043446384,-151.0,0.00016438,2]
[396539974,1765043446394,-500.92222263,0.00016438,2]
[396539975,1765043446405,-500.0,0.00016438,2]
[396539976,1765043446414,-2878.36,0.00016438,2]
[396539977,1765043446424,-500.0,0.00016438,2]
[396539978,1765043446434,-500.0,0.00016438,2]
[396539979,1765043446444,-500.0,0.00016438,2]
[396539980,1765043446455,-531.74,0.00016438,2]
[396539981,1765043446465,-500.0,0.00016438,2]
[396539982,1765043446474,-500.0,0.00016438,2]
[396539983,1765043446484,-2388.4,0.00016438,2]
[396539984,1765043446493,-1275.79,0.00016438,2]
[396539985,1765043446503,-500.0,0.00016438,2]
[396539986,1765043446512,-503.79998225,0.00016438,2]
[396539987,1765043446521,-151.0,0.00016438,2]
[396539988,1765043446530,-151.0,0.00016438,2]
[396539989,1765043446539,-500.0,0.00016438,2]
[396539990,1765043446549,-500.0,0.00016438,2]
[396539991,1765043446558,-500.0,0.00016438,2]
[396539992,1765043446568,-165.396889,0.00016438,2]
[396539993,1765043446577,-576.36,0.00016438,2]
[396539994,1765043446586,-500.0,0.00016438,2]
[396539995,1765043446596,-165.396889,0.00016438,2]
[396539996,1765043446605,-151.0,0.00016438,2]
[396539997,1765043446615,-300.0,0.00016438,2]
[396539998,1765043446625,-500.0,0.00016438,2]
[396539999,1765043446634,-588.57,0.00016438,2]
[396540000,1765043446644,-151.0,0.00016438,2]
[396540001,1765043446653,-165.396889,0.00016438,2]
[396540002,1765043446663,-151.0,0.00016438,2]
[396540003,1765043446672,-500.0,0.00016438,2]
[396540004,1765043446682,-502.75525601,0.00016438,2]
[396540005,1765043446691,-500.0,0.00016438,2]
[396540006,1765043446703,-151.0,0.00016438,2]
[396540007,1765043446712,-165.396889,0.00016438,2]
[396540008,1765043446722,-500.0,0.00016438,2]
[396540009,1765043446732,-500.0,0.00016438,2]
[396540010,1765043446741,-500.0,0.00016438,2]
[396540011,1765043446751,-500.0,0.00016438,2]
[396540012,1765043446761,-500.0,0.00016438,2]
[396540013,1765043446771,-500.0,0.00016438,2]
[396540014,1765043446780,-503.03496975,0.00016438,2]
[396540015,1765043446790,-501.97212613,0.00016438,2]
[396540016,1765043446800,-745.69,0.00016438,2]
[396540017,1765043446810,-500.0,0.00016438,2]
[396540018,1765043446821,-1969.58,0.00016438,2]
[396540019,1765043446830,-500.0,0.00016438,2]
[396540020,1765043446840,-500.0,0.00016438,2]
[396540021,1765043446849,-503.00837935,0.00016438,2]
[396540022,1765043446859,-503.34163062,0.00016438,2]
[396540023,1765043446872,-2488.24,0.00016438,2]
[396540024,1765043446882,-500.0,0.00016438,2]
[396540025,1765043446892,-614.35,0.00016438,2]
[396540026,1765043446901,-500.0,0.00016438,2]
[396540027,1765043446911,-704.45,0.00016438,2]
[396540028,1765043446920,-503.3343658,0.00016438,2]
[396540029,1765043446929,-500.0,0.00016438,2]
[396540030,1765043446938,-674.79,0.00016438,2]
[396540031,1765043446948,-520.05597148,0.00016438,2]
[396540032,1765043446958,-5513.13,0.00016438,2]
[396540033,1765043446967,-502.48459344,0.00016438,2]
[396540034,1765043446976,-500.0,0.00016438,2]
[396540035,1765043446986,-500.0,0.00016438,2]
[396540036,1765043446996,-503.25961142,0.00016438,2]
[396540037,1765043447006,-500.0,0.00016438,2]
[396540038,1765043447015,-583.66360748,0.00016438,2]
[396540039,1765043447024,-502.87984273,0.00016438,2]
[396540040,1765043447035,-500.0,0.00016438,2]
[396540041,1765043447045,-1507.91,0.00016438,2]
[396540042,1765043447055,-500.0,0.00016438,2]
[396540043,1765043447065,-500.0,0.00016438,2]
[396540044,1765043447077,-500.0,0.00016438,2]
[396540045,1765043447087,-2448.44,0.00016438,2]
[396540046,1765043447096,-502.62184346,0.00016438,2]
[396540047,1765043447106,-753.79,0.00016438,2]
[396540048,1765043447117,-500.0,0.00016438,2]
[396540049,1765043447127,-500.0,0.00016438,2]
[396540050,1765043447137,-500.0,0.00016438,2]
[396540051,1765043447146,-500.0,0.00016438,2]
[396540052,1765043447156,-500.0,0.00016438,2]
[396540053,1765043447165,-500.0,0.00016438,2]
[396540054,1765043447174,-502.9556045,0.00016438,2]
[396540055,1765043447183,-500.0,0.00016438,2]
[396540056,1765043447192,-2932.83,0.00016438,2]
[396540057,1765043447202,-2730.41,0.00016438,2]
[396540058,1765043447211,-1952.38,0.00016438,2]
[396540059,1765043447220,-500.0,0.00016438,2]
[396540060,1765043447231,-500.0,0.00016438,2]
[396540061,1765043447240,-500.0,0.00016438,2]
[396540062,1765043447250,-500.0,0.00016438,2]
[396540063,1765043447260,-500.0,0.00016438,2]
[396540064,1765043447269,-1414.76,0.00016438,2]
[396540065,1765043447279,-500.0,0.00016438,2]
[396540066,1765043447288,-2687.28,0.00016438,2]
[396540067,1765043447298,-500.0,0.00016438,2]
[396540068,1765043447307,-500.0,0.00016438,2]
[396540069,1765043447316,-1379.11,0.00016438,2]
[396540070,1765043447325,-500.0,0.00016438,2]
[396540071,1765043447334,-503.20325223,0.00016438,2]
[396540072,1765043447344,-498.0211094,0.00016438,2]
[396540073,1765043447354,-500.0,0.00016438,2]
[396540074,1765043447364,-156.956192,0.00016438,2]
[396540075,1765043447374,-500.0,0.00016438,2]
[396540076,1765043447383,-774.58,0.00016438,2]
[396540077,1765043447393,-151.0,0.00016438,2]
[396540078,1765043447403,-481.50056983,0.00016438,2]
[396540079,1765043447412,-500.0,0.00016438,2]
[396540080,1765043447421,-500.0,0.00016438,2]
[396540081,1765043447431,-500.0,0.00016438,2]
[396540082,1765043447440,-500.0,0.00016438,2]
[396540083,1765043447450,-500.0,0.00016438,2]
[396540084,1765043447459,-500.0,0.00016438,2]
[396540085,1765043447468,-500.0,0.00016438,2]
[396540086,1765043447477,-500.0,0.00016438,2]
[396540087,1765043447486,-500.0,0.00016438,2]
[396540088,1765043447495,-8853.46,0.00016438,2]
[396540089,1765043447504,-500.0,0.00016438,2]
[396540090,1765043447514,-4611.36,0.00016438,2]
[396540091,1765043447524,-151.0,0.00016438,2]
[396540092,1765043447533,-500.0,0.00016438,2]
[396540093,1765043447542,-151.0,0.00016438,2]
[396540094,1765043447552,-2284.39,0.00016438,2]
[396540095,1765043447562,-500.0,0.00016438,2]
[396540096,1765043447571,-500.0,0.00016438,2]
[396540097,1765043447581,-500.0,0.00016438,2]
[396540098,1765043447591,-500.0,0.00016438,2]
[396540099,1765043447600,-538.03664818,0.00016438,2]
[396540100,1765043447610,-2697.85,0.00016438,2]
[396540101,1765043447619,-500.0,0.00016438,2]
[396540102,1765043447629,-500.0,0.00016438,2]
[396540103,1765043447638,-2855.84,0.00016438,2]
[396540104,1765043447648,-500.0,0.00016438,2]
[396540105,1765043447658,-500.0,0.00016438,2]
[396540106,1765043447667,-2896.7,0.00016438,2]
[396540107,1765043447678,-3097.68,0.00016438,2]
[396540108,1765043447687,-500.0,0.00016438,2]
[396540109,1765043447697,-500.0,0.00016438,2]
[396540110,1765043447706,-1807.42,0.00016438,2]
[396540111,1765043447716,-500.0,0.00016438,2]
[396540112,1765043447731,-500.0,0.00016438,2]
[396540113,1765043447751,-500.0,0.00016438,2]
[396540114,1765043447761,-623.54,0.00016438,2]
[396540115,1765043447770,-963.25,0.00016438,2]
[396540116,1765043447780,-500.0,0.00016438,2]
[396540117,1765043447790,-503.44743897,0.00016438,2]
[396540118,1765043447799,-503.16031696,0.00016438,2]
[396540119,1765043447809,-500.0,0.00016438,2]
[396540120,1765043447818,-500.0,0.00016438,2]
[396540121,1765043447827,-500.0,0.00016438,2]
[396540122,1765043447837,-503.94744766,0.00016438,2]
[396540123,1765043447846,-500.0,0.00016438,2]
[396540124,1765043447856,-500.0,0.00016438,2]
[396540125,1765043447866,-500.0,0.00016438,2]
[396540126,1765043447878,-500.0,0.00016438,2]
[396540127,1765043447887,-605.29,0.00016438,2]
[396540128,1765043447899,-535.8,0.00016438,2]
[396540129,1765043447910,-501.27967238,0.00016438,2]
[396540130,1765043447919,-546.96,0.00016438,2]
[396540131,1765043447928,-500.0,0.00016438,2]
[396540132,1765043447937,-500.0,0.00016438,2]
[396540133,1765043447950,-500.0,0.00016438,2]
[396540134,1765043447959,-2364.34,0.00016438,2]
[396540135,1765043447968,-2586.99,0.00016438,2]
[396540136,1765043447978,-500.0,0.00016438,2]
[396540137,1765043447987,-500.0,0.00016438,2]
[396540138,1765043447996,-630.41013807,0.00016438,2]
[396540139,1765043448009,-500.0,0.00016438,2]
[396540140,1765043448026,-1206.67,0.00016438,2]
[396540141,1765043448040,-500.0,0.00016438,2]
[396540142,1765043448051,-500.0,0.00016438,2]
[396540143,1765043448065,-500.0,0.00016438,2]
[396540144,1765043448078,-500.0,0.00016438,2]
[396540145,1765043448092,-500.0,0.00016438,2]
[396540146,1765043448106,-500.0,0.00016438,2]
[396540147,1765043448119,-500.0,0.00016438,2]
[396540148,1765043448132,-500.0,0.00016438,2]
[396540149,1765043448143,-500.0,0.00016438,2]
[396540150,1765043448157,-500.0,0.00016438,2]
[396540151,1765043448171,-2228.34,0.00016438,2]
[396540152,1765043448186,-557.43,0.00016438,2]
[396540153,1765043448200,-500.0,0.00016438,2]
[396540154,1765043448215,-500.0,0.00016438,2]
[396540155,1765043448229,-500.0,0.00016438,2]
[396540156,1765043448242,-500.0,0.00016438,2]
[396540157,1765043448256,-500.0,0.00016438,2]
[396540158,1765043448269,-748.93,0.00016438,2]
[396540159,1765043448282,-500.0,0.00016438,2]
[396540160,1765043448295,-500.0,0.00016438,2]
[396540161,1765043448309,-500.0,0.00016438,2]
[396540162,1765043448323,-500.0,0.00016438,2]
[396540163,1765043448336,-295.38070416,0.00016438,2]
[396540164,1765043448347,-500.0,0.00016438,2]
[396540165,1765043448359,-2785.54,0.00016438,2]
[396540166,1765043448370,-500.0,0.00016438,2]
[396540167,1765043448381,-500.0,0.00016438,2]
[396540168,1765043448396,-3105.34,0.00016438,2]
[396540169,1765043448409,-500.0,0.00016438,2]
[396540170,1765043448419,-500.0,0.00016438,2]
[396540171,1765043448430,-501.96425277,0.00016438,2]
[396540172,1765043448443,-617.55,0.00016438,2]
[396540173,1765043448457,-500.0,0.00016438,2]
[396540174,1765043448469,-500.0,0.00016438,2]
[396540175,1765043448481,-518.73877924,0.00016438,2]
[396540176,1765043448492,-562.87427087,0.00016438,2]
[396540177,1765043448505,-500.0,0.00016438,2]
[396540178,1765043448516,-500.0,0.00016438,2]
[396540179,1765043448528,-500.0,0.00016438,2]
[396540180,1765043448539,-514.17,0.00016438,2]
[396540181,1765043448551,-500.0,0.00016438,2]
[396540182,1765043448563,-3085.41,0.00016438,2]
[396540183,1765043448575,-556.91,0.00016438,2]
[396540184,1765043448586,-300.0,0.00016438,2]
[396540185,1765043448598,-500.0,0.00016438,2]
[396540186,1765043448610,-500.0,0.00016438,2]
[396540187,1765043448622,-500.0,0.00016438,2]
[396540188,1765043448633,-500.0,0.00016438,2]
[396540189,1765043448646,-500.0,0.00016438,2]
[396540190,1765043448658,-500.0,0.00016438,2]
[396540191,1765043448670,-500.0,0.00016438,2]
[396540192,1765043448681,-1000.0,0.00016438,2]
[396540193,1765043448693,-500.0,0.00016438,2]
[396540194,1765043448705,-2968.84,0.00016438,2]
[396540195,1765043448718,-2806.9,0.00016438,2]
[396540196,1765043448730,-500.0,0.00016438,2]
[396540197,1765043448755,-500.0,0.00016438,2]
[396540198,1765043448767,-500.0,0.00016438,2]
[396540199,1765043448778,-500.0,0.00016438,2]
[396540200,1765043448791,-3637.14,0.00016438,2]
[396540201,1765043448803,-500.0,0.00016438,2]
[396540202,1765043448816,-500.0,0.00016438,2]
[396540203,1765043448833,-500.0,0.00016438,2]
[396540204,1765043448845,-579.72,0.00016438,2]
[396540205,1765043448858,-151.0,0.00016438,2]
[396540206,1765043448873,-284.811634,0.00016438,2]
[396540207,1765043448886,-2697.35,0.00016438,2]
[396540208,1765043448899,-500.0,0.00016438,2]
[396540209,1765043448912,-500.0,0.00016438,2]
[396540210,1765043448924,-284.811634,0.00016438,2]
[396540211,1765043448936,-500.0,0.00016438,2]
[396540212,1765043448949,-605.37,0.00016438,2]
[396540213,1765043448961,-500.0,0.00016438,2]
[396540214,1765043448973,-636.21,0.00016438,2]
[396540215,1765043448985,-284.811634,0.00016438,2]
[396540216,1765043448997,-500.0,0.00016438,2]
[396540217,1765043449009,-9897.23,0.00016438,2]
[396540218,1765043449020,-500.0,0.00016438,2]
[396540219,1765043449032,-284.811634,0.00016438,2]
[396540220,1765043449044,-2736.74,0.00016438,2]
[396540221,1765043449055,-151.0,0.00016438,2]
[396540222,1765043449067,-582.6,0.00016438,2]
[396540223,1765043449079,-1845.07,0.00016438,2]
[396540224,1765043449090,-500.0,0.00016438,2]
[396540225,1765043449102,-500.0,0.00016438,2]
[396540226,1765043449114,-2580.58,0.00016438,2]
[396540227,1765043449126,-500.0,0.00016438,2]
[396540228,1765043449138,-500.0,0.00016438,2]
[396540229,1765043449149,-9898.94,0.00016438,2]
[396540230,1765043449161,-151.0,0.00016438,2]
[396540231,1765043449172,-500.0,0.00016438,2]
[396540232,1765043449184,-7871.35,0.00016438,2]
[396540233,1765043449195,-500.0,0.00016438,2]
[396540234,1765043449208,-500.0,0.00016438,2]
[396540235,1765043449220,-703.8,0.00016438,2]
[396540236,1765043449232,-670.87,0.00016438,2]
[396540237,1765043449243,-500.0,0.00016438,2]
[396540238,1765043449255,-817.88,0.00016438,2]
[396540239,1765043449267,-727.63,0.00016438,2]
[396540240,1765043449279,-502.71082473,0.00016438,2]
[396540241,1765043449292,-240.472926,0.00016438,2]
[396540242,1765043449306,-657.58,0.00016438,2]
[396540243,1765043449318,-352.81022722,0.00016438,2]
[396540244,1765043449331,-500.0,0.00016438,2]
[396540245,1765043449347,-500.0,0.00016438,2]
[396540246,1765043449359,-625.38,0.00016438,2]
[396540247,1765043449371,-2341.02,0.00016438,2]
[396540248,1765043449383,-502.65346538,0.00016438,2]
[396540249,1765043449396,-500.0,0.00016438,2]
[396540250,1765043449408,-151.0,0.00016438,2]
[396540251,1765043449420,-1037.17,0.00016438,2]
[396540252,1765043449432,-2399.19,0.00016438,2]
[396540253,1765043449444,-500.0,0.00016438,2]
[396540254,1765043449456,-2436.47,0.00016438,2]
[396540255,1765043449468,-584.03,0.00016438,2]
[396540256,1765043449483,-151.0,0.00016438,2]
[396540257,1765043449494,-516.11,0.00016438,2]
[396540258,1765043449506,-3052.03,0.00016438,2]
[396540259,1765043449518,-244.73171036,0.00016438,2]
[396540260,1765043449531,-2696.02,0.00016438,2]
[396540261,1765043449542,-500.0,0.00016438,2]
[396540262,1765043449553,-151.0,0.00016438,2]
[396540263,1765043449564,-500.0,0.00016438,2]
[396540264,1765043449576,-500.0,0.00016438,2]
[396540265,1765043449588,-504.27486528,0.00016438,2]
[396540266,1765043449601,-804.23,0.00016438,2]
[396540267,1765043449612,-1511.63,0.00016438,2]
[396540268,1765043449624,-2869.65,0.00016438,2]
[396540269,1765043449637,-2981.78,0.00016438,2]
[396540270,1765043449649,-517.52,0.00016438,2]
[396540271,1765043449661,-500.0,0.00016438,2]
[396540272,1765043449673,-500.0,0.00016438,2]
[396540273,1765043449684,-743.87,0.00016438,2]
[396540274,1765043449695,-151.0,0.00016438,2]
[396540275,1765043449708,-2855.91,0.00016438,2]
[396540276,1765043449720,-2868.29,0.00016438,2]
[396540277,1765043449732,-2279.29,0.00016438,2]
[396540278,1765043449744,-500.0,0.00016438,2]
[396540279,1765043449756,-673.74,0.00016438,2]
[396540280,1765043449767,-500.0,0.00016438,2]
[396540281,1765043449780,-500.0,0.00016438,2]
[396540282,1765043449792,-500.0,0.00016438,2]
[396540283,1765043449804,-1222.12,0.00016438,2]
[396540284,1765043449815,-500.0,0.00016438,2]
[396540285,1765043449826,-1962.75,0.00016438,2]
[396540286,1765043449837,-500.0,0.00016438,2]
[396540287,1765043449850,-500.0,0.00016438,2]
[396540288,1765043449863,-500.0,0.00016438,2]
[396540289,1765043449877,-500.0,0.00016438,2]
[396540290,1765043449889,-517.79,0.00016438,2]
[396540291,1765043449900,-2586.32,0.00016438,2]
[396540292,1765043449914,-500.0,0.00016438,2]
[396540293,1765043449925,-2595.6,0.00016438,2]
[396540294,1765043449936,-500.0,0.00016438,2]
[396540295,1765043449950,-500.0,0.00016438,2]
[396540296,1765043449963,-912.5,0.00016438,2]
[396540297,1765043449975,-500.0,0.00016438,2]
[396540298,1765043449988,-500.0,0.00016438,2]
[396540299,1765043449999,-552.44,0.00016438,2]
[396540300,1765043450011,-754.84,0.00016438,2]
[396540301,1765043450023,-2156.13,0.00016438,2]
[396540302,1765043450035,-1413.18,0.00016438,2]
[396540303,1765043450046,-500.0,0.00016438,2]
[396540304,1765043450057,-500.0,0.00016438,2]
[396540305,1765043450068,-2591.52,0.00016438,2]
[396540306,1765043450079,-519.61,0.00016438,2]
[396540307,1765043450090,-151.0,0.00016438,2]
[396540308,1765043450101,-500.0,0.00016438,2]
[396540309,1765043450111,-500.0,0.00016438,2]
[396540310,1765043450123,-500.0,0.00016438,2]
[396540311,1765043450134,-500.0,0.00016438,2]
[396540312,1765043450145,-606.59,0.00016438,2]
[396540313,1765043450157,-507.32,0.00016438,2]
[396540314,1765043450168,-500.0,0.00016438,2]
[396540315,1765043450179,-500.0,0.00016438,2]
[396540316,1765043450190,-737.2,0.00016438,2]
[396540317,1765043450202,-500.0,0.00016438,2]
[396540318,1765043450214,-500.0,0.00016438,2]
[396540319,1765043450225,-3180.34,0.00016438,2]
[396540320,1765043450235,-500.0,0.00016438,2]
[396540321,1765043450247,-858.37,0.00016438,2]
[396540322,1765043450258,-500.0,0.00016438,2]
[396540323,1765043450268,-500.0,0.00016438,2]
[396540324,1765043450279,-626.13516018,0.00016438,2]
[396540325,1765043450291,-500.0,0.00016438,2]
[396540326,1765043450302,-151.0,0.00016438,2]
[396540327,1765043450314,-921.12,0.00016438,2]
[396540328,1765043450326,-2967.72,0.00016438,2]
[396540329,1765043450337,-674.92,0.00016438,2]
[396540330,1765043450348,-151.0,0.00016438,2]
[396540331,1765043450360,-567.53,0.00016438,2]
[396540332,1765043450371,-151.0,0.00016438,2]
[396540333,1765043450382,-500.0,0.00016438,2]
[396540334,1765043450393,-500.0,0.00016438,2]
[396540335,1765043450404,-151.0,0.00016438,2]
[396540336,1765043450415,-151.0,0.00016438,2]
[396540337,1765043450426,-621.68,0.00016438,2]
[396540338,1765043450438,-151.0,0.00016438,2]
[396540339,1765043450449,-515.97,0.00016438,2]
[396540340,1765043450460,-1000.0,0.00016438,2]
[396540341,1765043450472,-173.584678,0.00016438,2]
[396540342,1765043450484,-750.97,0.00016438,2]
[396540343,1765043450500,-631.56349314,0.00016438,2]
[396540344,1765043450511,-610.97,0.00016438,2]
[396540345,1765043450525,-500.0,0.00016438,2]
[396540346,1765043450536,-707.09,0.00016438,2]
[396540347,1765043450547,-500.0,0.00016438,2]
[396540348,1765043450559,-3030.53,0.00016438,2]
[396540349,1765043450570,-920.04,0.00016438,2]
[396540350,1765043450581,-500.0,0.00016438,2]
[396540351,1765043450592,-2796.22,0.00016438,2]
[396540352,1765043450603,-500.0,0.00016438,2]
[396540353,1765043450614,-723.08,0.00016438,2]
[396540354,1765043450625,-1177.93,0.00016438,2]
[396540355,1765043450636,-1053.76,0.00016438,2]
[396540356,1765043450647,-500.0,0.00016438,2]
[396540357,1765043450658,-335.034726,0.00016438,2]
[396540358,1765043450669,-1582.66,0.00016438,2]
[396540359,1765043450680,-1582.66,0.00016438,2]
[396540360,1765043450691,-500.0,0.00016438,2]
[396540361,1765043450702,-505.22422973,0.00016438,2]
[396540362,1765043450713,-1582.66,0.00016438,2]
[396540363,1765043450725,-500.0,0.00016438,2]
[396540364,1765043450736,-1582.66,0.00016438,2]
[396540365,1765043450747,-500.0,0.00016438,2]
[396540366,1765043450759,-1582.66,0.00016438,2]
[396540367,1765043450770,-335.034726,0.00016438,2]
[396540368,1765043450781,-500.0,0.00016438,2]
[396540369,1765043450792,-1933.79,0.00016438,2]
[396540370,1765043450803,-151.0,0.00016438,2]
[396540371,1765043450814,-500.0,0.00016438,2]
[396540372,1765043450825,-335.034726,0.00016438,2]
[396540373,1765043450836,-239.80322716,0.00016438,2]
[396540374,1765043450848,-500.0,0.00016438,2]
[396540375,1765043450859,-151.0,0.00016438,2]
[396540376,1765043450871,-500.0,0.00016438,2]
[396540377,1765043450883,-335.034726,0.00016438,2]
[396540378,1765043450894,-500.0,0.00016438,2]
[396540379,1765043450905,-500.0,0.00016438,2]
[396540380,1765043450918,-151.0,0.00016438,2]
[396540381,1765043450929,-2220.92,0.00016438,2]
[396540382,1765043450940,-500.0,0.00016438,2]
[396540383,1765043450954,-500.0,0.00016438,2]
[396540384,1765043450965,-151.0,0.00016438,2]
[396540385,1765043450976,-500.0,0.00016438,2]
[396540386,1765043450987,-500.0,0.00016438,2]
[396540387,1765043450998,-502.946495,0.00016438,2]
[396540388,1765043451009,-500.0,0.00016438,2]
[396540389,1765043451483,-501.91,0.00016438,2]
[396540390,1765043451522,-500.0,0.00016438,2]
[396540391,1765043451544,-153.105069,0.00016438,2]
[396540392,1765043451553,-500.0,0.00016438,2]
[396540393,1765043451562,-500.0,0.00016438,2]
[396540394,1765043451572,-500.0,0.00016438,2]
[396540395,1765043451581,-503.86781822,0.00016438,2]
[396540396,1765043451590,-796.48,0.00016438,2]
[396540397,1765043451599,-500.0,0.00016438,2]
[396540398,1765043451608,-405.01574415,0.00016438,2]
[396540399,1765043451618,-2214.81,0.00016438,2]
[396540400,1765043451629,-281.44786632,0.00016438,2]
[396540401,1765043451638,-592.53,0.00016438,2]
[396540402,1765043451647,-302.41941747,0.00016438,2]
[396540403,1765043451656,-500.0,0.00016438,2]
[396540404,1765043451665,-3888.09,0.00016438,2]
[396540405,1765043451674,-500.0,0.00016438,2]
[396540406,1765043451684,-500.0,0.00016438,2]
[396540407,1765043451693,-611.06,0.00016438,2]
[396540408,1765043451702,-500.0,0.00016438,2]
[396540409,1765043451712,-500.0,0.00016438,2]
[396540410,1765043451721,-522.80266583,0.00016438,2]
[396540411,1765043451730,-151.0,0.00016438,2]
[396540412,1765043451739,-500.0,0.00016438,2]
[396540413,1765043451748,-501.01499024,0.00016438,2]
[396540414,1765043451757,-500.0,0.00016438,2]
[396540415,1765043451766,-500.0,0.00016438,2]
[396540416,1765043451775,-507.63914207,0.00016438,2]
[396540417,1765043451786,-500.0,0.00016438,2]
[396540418,1765043451796,-2694.36,0.00016438,2]
[396540419,1765043451805,-151.0,0.00016438,2]
[396540420,1765043451815,-500.0,0.00016438,2]
[396540421,1765043451824,-2757.26,0.00016438,2]
[396540422,1765043451833,-500.0,0.00016438,2]
[396540423,1765043451842,-500.0,0.00016438,2]
[396540424,1765043451852,-677.83,0.00016438,2]
[396540425,1765043451862,-500.0,0.00016438,2]
[396540426,1765043451876,-2489.55,0.00016438,2]
[396540427,1765043451885,-500.0,0.00016438,2]
[396540428,1765043451895,-1377.59,0.00016438,2]
[396540429,1765043451905,-500.0,0.00016438,2]
[396540430,1765043451914,-500.0,0.00016438,2]
[396540431,1765043451923,-658.49,0.00016438,2]
[396540432,1765043451933,-500.0,0.00016438,2]
[396540433,1765043451944,-500.0,0.00016438,2]
[396540434,1765043451954,-500.0,0.00016438,2]
[396540435,1765043451963,-500.0,0.00016438,2]
[396540436,1765043451972,-2297.23,0.00016438,2]
[396540437,1765043451982,-3023.2,0.00016438,2]
[396540438,1765043451992,-500.0,0.00016438,2]
[396540439,1765043452001,-500.0,0.00016438,2]
[396540440,1765043452011,-502.25023196,0.00016438,2]
[396540441,1765043452020,-2738.6,0.00016438,2]